[Event "Early-Titled-Tuesday-Blitz-April-23-2024"]
[Site "Chess.com"]
[Date "2024.04.23"]
[Round "2"]
[White "MagnusCarlsen"]
[Black "GeorgiosSouleidis"]
[Result "1-0"]
[WhiteElo "3219"]
[BlackElo "2672"]
[TimeControl "180+1"]
[EndTime "8:17:19 PDT"]
[Termination "MagnusCarlsen won by resignation"]

1. g3 {[%clk 0:03:00.9]} 1... d5 {[%clk 0:02:59.7]} 2. Bg2 {[%clk 0:02:53.8]}
2... c6 {[%clk 0:02:59.6]} 3. d3 {[%clk 0:02:52.5]} 3... Nf6 {[%clk 0:02:59.5]}
4. Nd2 {[%clk 0:02:52.4]} 4... e5 {[%clk 0:02:59.6]} 5. Ngf3 {[%clk 0:02:52.5]}
5... Bd6 {[%clk 0:02:59.8]} 6. e4 {[%clk 0:02:52.8]} 6... O-O {[%clk 0:02:59.9]}
7. O-O {[%clk 0:02:53.5]} 7... Re8 {[%clk 0:03:00.1]} 8. Re1 {[%clk 0:02:54.3]}
8... Nbd7 {[%clk 0:02:59.2]} 9. b3 {[%clk 0:02:54.1]} 9... Qc7 {[%clk
0:02:57.8]} 10. Bb2 {[%clk 0:02:54.3]} 10... a5 {[%clk 0:02:54.7]} 11. a3 {[%clk
0:02:54.1]} 11... Nf8 {[%clk 0:02:54.5]} 12. d4 {[%clk 0:02:53.2]} 12... exd4
{[%clk 0:02:44.8]} 13. exd5 {[%clk 0:02:47.4]} 13... Rxe1+ {[%clk 0:02:42.1]}
14. Qxe1 {[%clk 0:02:44.6]} 14... Nxd5 {[%clk 0:02:41.3]} 15. Nc4 {[%clk
0:02:44.5]} 15... Bd7 {[%clk 0:02:13.7]} 16. Nxd6 {[%clk 0:02:43.5]} 16... Qxd6
{[%clk 0:02:13.6]} 17. Nxd4 {[%clk 0:02:44.2]} 17... a4 {[%clk 0:02:02.1]} 18.
c4 {[%clk 0:02:44.1]} 18... Nf6 {[%clk 0:01:59.6]} 19. b4 {[%clk 0:02:40]} 19...
Re8 {[%clk 0:01:49.5]} 20. Qc3 {[%clk 0:02:32.8]} 20... Ng6 {[%clk 0:01:42.7]}
21. h3 {[%clk 0:02:29.8]} 21... h6 {[%clk 0:01:41.9]} 22. Rd1 {[%clk 0:02:27.2]}
22... Qe7 {[%clk 0:01:41.5]} 23. Nc2 {[%clk 0:02:20]} 23... Bf5 {[%clk
0:01:30.9]} 24. Ne3 {[%clk 0:02:18]} 24... Be4 {[%clk 0:01:24.9]} 25. Ng4 {[%clk
0:02:17.5]} 25... Bxg2 {[%clk 0:01:20.6]} 26. Kxg2 {[%clk 0:02:16.6]} 26... Qe4+
{[%clk 0:01:13.3]} 27. Kg1 {[%clk 0:02:14.4]} 27... Re6 {[%clk 0:01:02]} 28.
Nxf6+ {[%clk 0:01:53.7]} 28... Rxf6 {[%clk 0:00:59.3]} 29. Qd3 {[%clk
0:01:54.3]} 29... Qxd3 {[%clk 0:00:55]} 30. Rxd3 {[%clk 0:01:55.2]} 30... Re6
{[%clk 0:00:55.6]} 31. Rd8+ {[%clk 0:01:48.9]} 31... Kh7 {[%clk 0:00:51.7]} 32.
Rb8 {[%clk 0:01:49.1]} 32... Re7 {[%clk 0:00:47.3]} 33. Kf1 {[%clk 0:01:48.4]}
33... f6 {[%clk 0:00:34.7]} 34. Ra8 {[%clk 0:01:48.4]} 34... Re4 {[%clk
0:00:27.2]} 35. c5 {[%clk 0:01:47.4]} 35... Rc4 {[%clk 0:00:25.4]} 36. Rxa4
{[%clk 0:01:47.2]} 36... Rc2 {[%clk 0:00:25.7]} 37. Bd4 {[%clk 0:01:47.2]} 37...
Rc4 {[%clk 0:00:21.7]} 38. Be3 {[%clk 0:01:47.3]} 38... Ne5 {[%clk 0:00:18.5]}
39. Ra7 {[%clk 0:01:47.2]} 39... Rc3 {[%clk 0:00:18.3]} 40. Bd4 {[%clk
0:01:47.4]} 40... Rc1+ {[%clk 0:00:18.1]} 41. Ke2 {[%clk 0:01:47.1]} 41... Nc4
{[%clk 0:00:18.2]} 42. Kd3 {[%clk 0:01:46.1]} 42... Kg6 {[%clk 0:00:10]} 43. a4
{[%clk 0:01:46.3]} 43... Kf5 {[%clk 0:00:09.5]} 44. Rxb7 {[%clk 0:01:46.3]}
44... g5 {[%clk 0:00:07.6]} 45. Bc3 {[%clk 0:01:44]} 45... Ne5+ {[%clk
0:00:06.5]} 46. Bxe5 {[%clk 0:01:44.4]} 46... Kxe5 {[%clk 0:00:06.4]} 47. Re7+
{[%clk 0:01:43.4]} 47... Kd5 {[%clk 0:00:05.2]} 48. Rd7+ {[%clk 0:01:43.8]}
48... Ke5 {[%clk 0:00:05.4]} 49. Rd6 {[%clk 0:01:44.7]} 49... Ra1 {[%clk
0:00:05.3]} 50. a5 {[%clk 0:01:44.7]} 50... Rb1 {[%clk 0:00:05]} 51. Kc3 {[%clk
0:01:44.3]} 51... Rc1+ {[%clk 0:00:05.4]} 52. Kb2 {[%clk 0:01:42.9]} 52... Rf1
{[%clk 0:00:05.8]} 53. f4+ {[%clk 0:01:41]} 53... gxf4 {[%clk 0:00:06.7]} 54.
gxf4+ {[%clk 0:01:41.8]} 54... Rxf4 {[%clk 0:00:07.1]} 55. Kb3 {[%clk
0:01:42.5]} 55... Rf3+ {[%clk 0:00:07.5]} 56. Ka4 {[%clk 0:01:42.9]} 56... Rxh3
{[%clk 0:00:08]} 57. Rxc6 {[%clk 0:01:42.9]} 57... Rh1 {[%clk 0:00:08.3]} 58. a6
{[%clk 0:01:42.6]} 58... Ra1+ {[%clk 0:00:08.7]} 59. Kb5 {[%clk 0:01:42.9]}
59... f5 {[%clk 0:00:09.6]} 60. Rxh6 {[%clk 0:01:42.6]} 60... f4 {[%clk
0:00:10.5]} 61. Rh8 {[%clk 0:01:42.5]} 61... f3 {[%clk 0:00:10.1]} 62. Rf8
{[%clk 0:01:43.2]} 62... Ke4 {[%clk 0:00:10.6]} 63. c6 {[%clk 0:01:43.9]} 63...
Ke3 {[%clk 0:00:10.8]} 64. c7 {[%clk 0:01:44.3]} 64... f2 {[%clk 0:00:11.5]} 65.
c8=Q {[%clk 0:01:43.5]} 1-0

[Event "Early-Titled-Tuesday-Blitz-April-23-2024"]
[Site "Chess.com"]
[Date "2024.04.23"]
[Round "2"]
[White "Juicy_Fork"]
[Black "Dewarfd"]
[Result "1-0"]
[WhiteElo "2475"]
[BlackElo "2102"]
[TimeControl "180+1"]
[EndTime "8:17:20 PDT"]
[Termination "Juicy_Fork won on time"]

1. e4 {[%clk 0:03:00.9]} 1... c5 {[%clk 0:02:59.1]} 2. Nf3 {[%clk 0:03:00.2]}
2... g6 {[%clk 0:02:59]} 3. d4 {[%clk 0:03:00]} 3... cxd4 {[%clk 0:02:59.9]} 4.
Nxd4 {[%clk 0:03:00.3]} 4... Nc6 {[%clk 0:03:00.6]} 5. Nc3 {[%clk 0:03:00.5]}
5... Bg7 {[%clk 0:03:00]} 6. Be3 {[%clk 0:03:00.5]} 6... Nf6 {[%clk 0:03:00.1]}
7. Bc4 {[%clk 0:02:57]} 7... O-O {[%clk 0:02:57.7]} 8. Bb3 {[%clk 0:02:56.8]}
8... a5 {[%clk 0:02:07.6]} 9. O-O {[%clk 0:02:52.9]} 9... a4 {[%clk 0:02:06.2]}
10. Nxa4 {[%clk 0:02:50.9]} 10... Nxe4 {[%clk 0:02:05]} 11. Nb5 {[%clk
0:02:51.5]} 11... d5 {[%clk 0:01:23.5]} 12. Nb6 {[%clk 0:02:20]} 12... Ra6
{[%clk 0:01:21.4]} 13. Nxc8 {[%clk 0:01:59.7]} 13... Qxc8 {[%clk 0:01:20.9]} 14.
Qxd5 {[%clk 0:02:00.4]} 14... Nf6 {[%clk 0:01:12.4]} 15. Qf3 {[%clk 0:01:28]}
15... Ng4 {[%clk 0:00:41.3]} 16. c3 {[%clk 0:00:57.8]} 16... Na5 {[%clk
0:00:20.8]} 17. Bd4 {[%clk 0:00:16.4]} 17... e5 {[%clk 0:00:14.2]} 18. Be3
{[%clk 0:00:16.5]} 18... Nxb3 {[%clk 0:00:12.1]} 19. axb3 {[%clk 0:00:15.4]}
19... Nxe3 {[%clk 0:00:12]} 20. Qxe3 {[%clk 0:00:14.7]} 20... Qc6 {[%clk
0:00:08.6]} 21. c4 {[%clk 0:00:14.5]} 21... Rfa8 {[%clk 0:00:05.1]} 22. Rad1
{[%clk 0:00:13.6]} 22... e4 {[%clk 0:00:02]} 23. Rd6 {[%clk 0:00:13]} 1-0

[Event "Early-Titled-Tuesday-Blitz-April-23-2024"]
[Site "Chess.com"]
[Date "2024.04.23"]
[Round "2"]
[White "YouShallNotPass001"]
[Black "vladislavkovalev"]
[Result "0-1"]
[WhiteElo "2434"]
[BlackElo "2850"]
[TimeControl "180+1"]
[EndTime "8:17:21 PDT"]
[Termination "vladislavkovalev won by resignation"]

1. e4 {[%clk 0:03:00.9]} 1... e5 {[%clk 0:02:58.1]} 2. Nf3 {[%clk 0:02:58.1]}
2... Nc6 {[%clk 0:02:58.3]} 3. Bb5 {[%clk 0:02:57.4]} 3... a6 {[%clk 0:02:57.4]}
4. Ba4 {[%clk 0:02:56.6]} 4... Nf6 {[%clk 0:02:57.7]} 5. d3 {[%clk 0:02:56.6]}
5... d6 {[%clk 0:02:56.5]} 6. O-O {[%clk 0:02:56.7]} 6... g6 {[%clk 0:02:57.2]}
7. c3 {[%clk 0:02:56.2]} 7... Bg7 {[%clk 0:02:57.9]} 8. Bc2 {[%clk 0:02:55.6]}
8... O-O {[%clk 0:02:58.4]} 9. Nbd2 {[%clk 0:02:54.7]} 9... Re8 {[%clk
0:02:57.8]} 10. Re1 {[%clk 0:02:54.1]} 10... h6 {[%clk 0:02:57]} 11. Nf1 {[%clk
0:02:54.1]} 11... d5 {[%clk 0:02:57.4]} 12. h3 {[%clk 0:02:43.6]} 12... b6
{[%clk 0:02:48.2]} 13. Ng3 {[%clk 0:01:59.7]} 13... Bb7 {[%clk 0:02:30.5]} 14.
a4 {[%clk 0:01:40.3]} 14... a5 {[%clk 0:02:26.5]} 15. Bb3 {[%clk 0:01:37.9]}
15... Qd7 {[%clk 0:02:18.9]} 16. exd5 {[%clk 0:01:33.8]} 16... Nxd5 {[%clk
0:02:18.1]} 17. Bc4 {[%clk 0:01:34.3]} 17... Ba6 {[%clk 0:02:11.9]} 18. Qb3
{[%clk 0:01:31.8]} 18... Bxc4 {[%clk 0:02:11.7]} 19. dxc4 {[%clk 0:01:22.6]}
19... Nde7 {[%clk 0:01:59.6]} 20. c5 {[%clk 0:01:08.8]} 20... bxc5 {[%clk
0:01:59.6]} 21. Rd1 {[%clk 0:01:08.2]} 21... Qc8 {[%clk 0:01:48.5]} 22. Nd2
{[%clk 0:00:54.3]} 22... Nf5 {[%clk 0:01:32.1]} 23. Nde4 {[%clk 0:00:50.2]}
23... Nxg3 {[%clk 0:01:31.5]} 24. Nxg3 {[%clk 0:00:51.1]} 24... e4 {[%clk
0:01:30.3]} 25. Re1 {[%clk 0:00:49.1]} 25... Rb8 {[%clk 0:01:27.5]} 26. Qc4
{[%clk 0:00:48.2]} 26... Ne5 {[%clk 0:01:27.2]} 27. Qf1 {[%clk 0:00:37.6]} 27...
f5 {[%clk 0:01:22.6]} 28. Be3 {[%clk 0:00:35.3]} 28... Nd3 {[%clk 0:01:20.5]}
29. Re2 {[%clk 0:00:35.6]} 29... c4 {[%clk 0:01:20.9]} 30. Qb1 {[%clk
0:00:32.7]} 30... c5 {[%clk 0:01:01.4]} 31. Qa2 {[%clk 0:00:30.5]} 31... Rb3
{[%clk 0:00:59.4]} 32. Nf1 {[%clk 0:00:28.6]} 32... Qe6 {[%clk 0:00:49.7]} 33.
Rb1 {[%clk 0:00:26.6]} 33... Reb8 {[%clk 0:00:49.4]} 34. Nd2 {[%clk 0:00:25]}
34... Rxb2 {[%clk 0:00:47.8]} 35. Rxb2 {[%clk 0:00:22.1]} 35... Rxb2 {[%clk
0:00:48.7]} 36. Qa3 {[%clk 0:00:21.8]} 36... Qd5 {[%clk 0:00:38.2]} 37. g3
{[%clk 0:00:21.7]} 37... g5 {[%clk 0:00:37.7]} 38. h4 {[%clk 0:00:19.2]} 38...
gxh4 {[%clk 0:00:36.4]} 39. gxh4 {[%clk 0:00:20]} 39... f4 {[%clk 0:00:36.9]}
40. Bxf4 {[%clk 0:00:20]} 40... Nxf4 {[%clk 0:00:37.8]} 41. Rxe4 {[%clk
0:00:19.5]} 41... Rxd2 {[%clk 0:00:37.3]} 0-1

[Event "Early-Titled-Tuesday-Blitz-April-23-2024"]
[Site "Chess.com"]
[Date "2024.04.23"]
[Round "2"]
[White "FLYD"]
[Black "DanielNaroditsky"]
[Result "1/2-1/2"]
[WhiteElo "2012"]
[BlackElo "3023"]
[TimeControl "180+1"]
[EndTime "8:17:22 PDT"]
[Termination "Game drawn - insufficient material"]

1. e4 {[%clk 0:03:00.9]} 1... c5 {[%clk 0:02:58.6]} 2. Nf3 {[%clk 0:03:01]} 2...
Nf6 {[%clk 0:02:58.8]} 3. e5 {[%clk 0:02:59.6]} 3... Nd5 {[%clk 0:02:59.4]} 4.
Nc3 {[%clk 0:02:59.3]} 4... e6 {[%clk 0:03:00.1]} 5. g3 {[%clk 0:02:51.7]} 5...
Nc6 {[%clk 0:03:00.1]} 6. Bg2 {[%clk 0:02:49.2]} 6... Qc7 {[%clk 0:03:00.3]} 7.
Nxd5 {[%clk 0:02:47.2]} 7... exd5 {[%clk 0:03:00.7]} 8. O-O {[%clk 0:02:46.9]}
8... Be7 {[%clk 0:03:01.2]} 9. Re1 {[%clk 0:02:46]} 9... O-O {[%clk 0:03:02]}
10. d4 {[%clk 0:02:42.4]} 10... d6 {[%clk 0:03:02]} 11. exd6 {[%clk 0:02:39.7]}
11... Bxd6 {[%clk 0:03:01.4]} 12. dxc5 {[%clk 0:02:40.4]} 12... Bxc5 {[%clk
0:03:02.1]} 13. Be3 {[%clk 0:02:38]} 13... Bxe3 {[%clk 0:02:58]} 14. Rxe3 {[%clk
0:02:38.9]} 14... Rd8 {[%clk 0:02:58.4]} 15. c3 {[%clk 0:02:33.1]} 15... Bg4
{[%clk 0:02:56.9]} 16. h3 {[%clk 0:02:32]} 16... Bh5 {[%clk 0:02:55.2]} 17. Qa4
{[%clk 0:02:27.1]} 17... h6 {[%clk 0:02:52.6]} 18. Rae1 {[%clk 0:02:24.8]} 18...
Qb6 {[%clk 0:02:51.9]} 19. Qb3 {[%clk 0:02:21.2]} 19... Qc7 {[%clk 0:02:50.1]}
20. Ne5 {[%clk 0:02:15.1]} 20... d4 {[%clk 0:02:50.7]} 21. cxd4 {[%clk
0:01:47.9]} 21... Nxd4 {[%clk 0:02:51.6]} 22. Qxb7 {[%clk 0:01:47]} 22... Qxb7
{[%clk 0:02:50]} 23. Bxb7 {[%clk 0:01:46.6]} 23... Rab8 {[%clk 0:02:50.7]} 24.
Nc6 {[%clk 0:01:45.1]} 24... Nxc6 {[%clk 0:02:49.1]} 25. Bxc6 {[%clk 0:01:46]}
25... Rxb2 {[%clk 0:02:49.4]} 26. Re8+ {[%clk 0:01:38.7]} 26... Rxe8 {[%clk
0:02:49.8]} 27. Rxe8+ {[%clk 0:01:39.6]} 27... Kh7 {[%clk 0:02:50.5]} 28. a4
{[%clk 0:01:33.6]} 28... f5 {[%clk 0:02:47.7]} 29. Re7 {[%clk 0:01:22.9]} 29...
a5 {[%clk 0:02:48.2]} 30. Re5 {[%clk 0:01:20.4]} 30... Rc2 {[%clk 0:02:36.9]}
31. Bg2 {[%clk 0:01:15.8]} 31... Bg6 {[%clk 0:02:18.9]} 32. Rxa5 {[%clk
0:01:13.7]} 32... Ra2 {[%clk 0:02:19.6]} 33. Ra8 {[%clk 0:01:07.6]} 33... Bf7
{[%clk 0:02:20.3]} 34. a5 {[%clk 0:01:05.1]} 34... Bc4 {[%clk 0:02:21.1]} 35.
Bb7 {[%clk 0:01:01.7]} 35... Ra1+ {[%clk 0:02:20.6]} 36. Kg2 {[%clk 0:01:01.9]}
36... Bf1+ {[%clk 0:02:20.6]} 37. Kf3 {[%clk 0:00:52.6]} 37... g5 {[%clk
0:02:15.6]} 38. Ke3 {[%clk 0:00:53]} 38... Bxh3 {[%clk 0:02:10.7]} 39. a6 {[%clk
0:00:46.4]} 39... Bf1 {[%clk 0:02:11.2]} 40. Rf8 {[%clk 0:00:17.3]} 40... Kg6
{[%clk 0:02:05]} 41. Rg8+ {[%clk 0:00:15.3]} 41... Kf7 {[%clk 0:02:04.2]} 42.
Ra8 {[%clk 0:00:12.3]} 42... Kg7 {[%clk 0:02:01.2]} 43. a7 {[%clk 0:00:12.7]}
43... h5 {[%clk 0:02:01.2]} 44. f4 {[%clk 0:00:11.8]} 44... h4 {[%clk
0:01:56.5]} 45. gxh4 {[%clk 0:00:10]} 45... gxh4 {[%clk 0:01:57.4]} 46. Kf2
{[%clk 0:00:08.7]} 46... Bb5 {[%clk 0:01:52.9]} 47. Bg2 {[%clk 0:00:07.6]} 47...
Ra2+ {[%clk 0:01:51.8]} 48. Ke3 {[%clk 0:00:03.4]} 48... Bd7 {[%clk 0:01:37.7]}
49. Kd4 {[%clk 0:00:03.4]} 49... Ra5 {[%clk 0:01:32.9]} 50. Bd5 {[%clk
0:00:02.7]} 50... h3 {[%clk 0:01:32.1]} 51. Rg8+ {[%clk 0:00:02.8]} 51... Kh6
{[%clk 0:01:28.3]} 52. a8=Q {[%clk 0:00:03.7]} 52... Rxa8 {[%clk 0:01:28]} 53.
Rxa8 {[%clk 0:00:04.6]} 53... Kh5 {[%clk 0:01:27.8]} 54. Ra1 {[%clk 0:00:05.1]}
54... Kg4 {[%clk 0:01:28.3]} 55. Ke5 {[%clk 0:00:05.5]} 55... h2 {[%clk
0:01:28.1]} 56. Rh1 {[%clk 0:00:03.7]} 56... Kg3 {[%clk 0:01:28.8]} 57. Be6
{[%clk 0:00:03.4]} 57... Bc6 {[%clk 0:01:29.3]} 58. Rxh2 {[%clk 0:00:01.8]}
58... Kxh2 {[%clk 0:01:30.2]} 59. Kxf5 {[%clk 0:00:01.7]} 59... Kg3 {[%clk
0:01:31.1]} 60. Ke5 {[%clk 0:00:02.6]} 60... Be8 {[%clk 0:01:30.6]} 61. f5
{[%clk 0:00:03.5]} 61... Kh4 {[%clk 0:01:31.2]} 62. f6 {[%clk 0:00:04.4]} 62...
Kg5 {[%clk 0:01:31.9]} 63. f7 {[%clk 0:00:04.4]} 63... Bxf7 {[%clk 0:01:32.6]}
1/2-1/2

[Event "Early-Titled-Tuesday-Blitz-April-23-2024"]
[Site "Chess.com"]
[Date "2024.04.23"]
[Round "2"]
[White "toninhojit"]
[Black "ClauSanLuis"]
[Result "1-0"]
[WhiteElo "2557"]
[BlackElo "2322"]
[TimeControl "180+1"]
[EndTime "8:17:23 PDT"]
[Termination "toninhojit won by resignation"]

1. d4 {[%clk 0:03:00.9]} 1... Nf6 {[%clk 0:02:58.4]} 2. c4 {[%clk 0:03:00.9]}
2... e6 {[%clk 0:02:56.9]} 3. Nf3 {[%clk 0:02:59.5]} 3... c5 {[%clk 0:02:56.6]}
4. e3 {[%clk 0:02:57.7]} 4... d5 {[%clk 0:02:54.5]} 5. a3 {[%clk 0:02:58]} 5...
Nc6 {[%clk 0:02:54]} 6. Nc3 {[%clk 0:02:56.5]} 6... Be7 {[%clk 0:02:49]} 7. dxc5
{[%clk 0:02:56.4]} 7... dxc4 {[%clk 0:02:45.6]} 8. Qxd8+ {[%clk 0:02:52.8]} 8...
Nxd8 {[%clk 0:02:43]} 9. Bxc4 {[%clk 0:02:52.7]} 9... Bxc5 {[%clk 0:02:41.7]}
10. b4 {[%clk 0:02:53.4]} 10... Bb6 {[%clk 0:02:35.7]} 11. Bb2 {[%clk
0:02:48.5]} 11... Bd7 {[%clk 0:02:31]} 12. Ne5 {[%clk 0:02:41.8]} 12... Rc8
{[%clk 0:02:28.5]} 13. Nxd7 {[%clk 0:02:35.8]} 13... Rxc4 {[%clk 0:02:15.5]} 14.
Nxb6 {[%clk 0:02:30.4]} 14... axb6 {[%clk 0:02:16.4]} 15. Ke2 {[%clk 0:02:26.1]}
15... Nc6 {[%clk 0:02:07.8]} 16. Rac1 {[%clk 0:02:25.4]} 16... Ke7 {[%clk
0:02:06.1]} 17. Nb5 {[%clk 0:02:18]} 17... Rxc1 {[%clk 0:01:55.1]} 18. Rxc1
{[%clk 0:02:18.9]} 18... Rd8 {[%clk 0:01:45]} 19. Nd4 {[%clk 0:02:11.4]} 19...
Rd6 {[%clk 0:00:51.6]} 20. Nb5 {[%clk 0:02:08.8]} 20... Rd7 {[%clk 0:00:51.1]}
21. f3 {[%clk 0:02:01.1]} 21... g6 {[%clk 0:00:50.6]} 22. g3 {[%clk 0:02:00.9]}
22... Nd5 {[%clk 0:00:49.8]} 23. e4 {[%clk 0:01:53.2]} 23... Nc7 {[%clk
0:00:45.2]} 24. Nxc7 {[%clk 0:01:28]} 24... Rxc7 {[%clk 0:00:46.1]} 25. Ke3
{[%clk 0:01:23.6]} 25... b5 {[%clk 0:00:43.9]} 26. Rc5 {[%clk 0:01:20.1]} 26...
b6 {[%clk 0:00:35]} 27. Rxb5 {[%clk 0:01:14.3]} 27... Rb7 {[%clk 0:00:35]} 28.
Bd4 {[%clk 0:01:04.3]} 28... Nxd4 {[%clk 0:00:34.3]} 29. Kxd4 {[%clk 0:01:05.2]}
29... Ra7 {[%clk 0:00:31.2]} 30. Rxb6 {[%clk 0:00:59.8]} 30... Rxa3 {[%clk
0:00:31.7]} 31. f4 {[%clk 0:00:54.8]} 31... f6 {[%clk 0:00:27.1]} 32. Rb7+
{[%clk 0:00:55]} 32... Kd6 {[%clk 0:00:26.8]} 33. Rxh7 {[%clk 0:00:49.7]} 33...
e5+ {[%clk 0:00:25.7]} 34. fxe5+ {[%clk 0:00:48.9]} 34... fxe5+ {[%clk
0:00:26.6]} 35. Kc4 {[%clk 0:00:46.1]} 35... Ra2 {[%clk 0:00:26.3]} 36. Kb5
{[%clk 0:00:44.9]} 36... Ra1 {[%clk 0:00:18]} 37. Rh6 {[%clk 0:00:44.3]} 37...
Kc7 {[%clk 0:00:16.8]} 38. Rxg6 {[%clk 0:00:43.4]} 1-0

[Event "Early-Titled-Tuesday-Blitz-April-23-2024"]
[Site "Chess.com"]
[Date "2024.04.23"]
[Round "2"]
[White "Valio_M1948"]
[Black "Casablanca"]
[Result "0-1"]
[WhiteElo "2371"]
[BlackElo "2628"]
[TimeControl "180+1"]
[EndTime "8:17:24 PDT"]
[Termination "Casablanca won by resignation"]

1. b3 {[%clk 0:03:00.9]} 1... e5 {[%clk 0:02:57.6]} 2. Bb2 {[%clk 0:03:01.5]}
2... Nc6 {[%clk 0:02:54.7]} 3. e3 {[%clk 0:03:01.9]} 3... Nf6 {[%clk 0:02:54.1]}
4. Bb5 {[%clk 0:03:02]} 4... a6 {[%clk 0:02:51.8]} 5. Bxc6 {[%clk 0:03:01.8]}
5... dxc6 {[%clk 0:02:51.4]} 6. Bxe5 {[%clk 0:03:02]} 6... Be7 {[%clk 0:02:51]}
7. Nf3 {[%clk 0:03:01.6]} 7... O-O {[%clk 0:02:48.9]} 8. O-O {[%clk 0:02:59.2]}
8... Re8 {[%clk 0:02:49.3]} 9. c4 {[%clk 0:02:52.9]} 9... c5 {[%clk 0:02:22.5]}
10. Nc3 {[%clk 0:02:45.1]} 10... Bf5 {[%clk 0:02:22.6]} 11. Re1 {[%clk
0:02:36.6]} 11... c6 {[%clk 0:02:17.5]} 12. e4 {[%clk 0:02:36.2]} 12... Bg4
{[%clk 0:02:15.8]} 13. d3 {[%clk 0:02:34.5]} 13... Be6 {[%clk 0:02:12.1]} 14.
Ng5 {[%clk 0:02:27.6]} 14... Bg4 {[%clk 0:02:08.9]} 15. f3 {[%clk 0:02:27.2]}
15... Bh5 {[%clk 0:02:08.6]} 16. Nh3 {[%clk 0:02:24.6]} 16... Bd6 {[%clk
0:02:08.2]} 17. Bxd6 {[%clk 0:02:20]} 17... Qxd6 {[%clk 0:02:09.1]} 18. Qd2
{[%clk 0:02:20.5]} 18... Rad8 {[%clk 0:02:07.3]} 19. Rad1 {[%clk 0:02:20.3]}
19... Bg6 {[%clk 0:02:05]} 20. f4 {[%clk 0:02:17.3]} 20... Bxe4 {[%clk
0:02:01.4]} 21. Nxe4 {[%clk 0:01:28.1]} 21... Nxe4 {[%clk 0:01:53.4]} 22. Qb2
{[%clk 0:01:21]} 22... Nf6 {[%clk 0:01:53.6]} 23. Re5 {[%clk 0:01:18.9]} 23...
Nd7 {[%clk 0:01:52.1]} 24. Ree1 {[%clk 0:01:14.5]} 24... Nf8 {[%clk 0:01:41.3]}
25. Qf2 {[%clk 0:01:02.3]} 25... Ne6 {[%clk 0:01:32.3]} 26. Re5 {[%clk
0:00:57.5]} 26... f6 {[%clk 0:01:27.2]} 27. Re4 {[%clk 0:00:54]} 27... Nd4
{[%clk 0:01:24.4]} 28. Rde1 {[%clk 0:00:52.9]} 28... Qd7 {[%clk 0:01:18.6]} 29.
Qe3 {[%clk 0:00:46.3]} 29... Kf8 {[%clk 0:01:15.2]} 30. Nf2 {[%clk 0:00:37]}
30... b5 {[%clk 0:01:11.3]} 31. Qc1 {[%clk 0:00:28.6]} 31... b4 {[%clk
0:01:06.9]} 32. Qe3 {[%clk 0:00:22.7]} 32... a5 {[%clk 0:01:05.8]} 33. Rxe8+
{[%clk 0:00:20.4]} 33... Rxe8 {[%clk 0:01:06.7]} 34. Ne4 {[%clk 0:00:20.9]}
34... Qg4 {[%clk 0:00:59.3]} 35. Qf2 {[%clk 0:00:18.8]} 35... h5 {[%clk
0:00:55.4]} 36. Nxc5 {[%clk 0:00:17.3]} 36... Nf3+ {[%clk 0:00:52.4]} 37. Qxf3
{[%clk 0:00:13.9]} 37... Rxe1+ {[%clk 0:00:50.2]} 38. Kf2 {[%clk 0:00:14.4]}
38... Qxf3+ {[%clk 0:00:45.5]} 39. Kxf3 {[%clk 0:00:13.9]} 39... Ra1 {[%clk
0:00:46.4]} 40. Nd7+ {[%clk 0:00:11.8]} 40... Ke7 {[%clk 0:00:46.5]} 41. Nb8
{[%clk 0:00:11]} 41... Kd6 {[%clk 0:00:47]} 42. d4 {[%clk 0:00:10.4]} 42... Rxa2
{[%clk 0:00:46.2]} 43. g3 {[%clk 0:00:08.8]} 43... a4 {[%clk 0:00:44.4]} 0-1

[Event "Early-Titled-Tuesday-Blitz-April-23-2024"]
[Site "Chess.com"]
[Date "2024.04.23"]
[Round "2"]
[White "Slovineanu"]
[Black "LamaChampetre"]
[Result "1-0"]
[WhiteElo "2503"]
[BlackElo "2216"]
[TimeControl "180+1"]
[EndTime "8:17:24 PDT"]
[Termination "Slovineanu won on time"]

1. d4 {[%clk 0:02:58]} 1... Nf6 {[%clk 0:02:56.9]} 2. Nf3 {[%clk 0:02:58.2]}
2... g6 {[%clk 0:02:55.8]} 3. Nbd2 {[%clk 0:02:57.6]} 3... d5 {[%clk 0:02:55.1]}
4. e3 {[%clk 0:02:57.8]} 4... Bg7 {[%clk 0:02:55.3]} 5. b4 {[%clk 0:02:58.4]}
5... O-O {[%clk 0:02:54.3]} 6. c4 {[%clk 0:02:58.6]} 6... a5 {[%clk 0:02:27.4]}
7. b5 {[%clk 0:02:58.4]} 7... Ne4 {[%clk 0:02:02.3]} 8. cxd5 {[%clk 0:02:05.2]}
8... Nc3 {[%clk 0:01:49.6]} 9. Qb3 {[%clk 0:02:04.6]} 9... Nxd5 {[%clk
0:01:49.3]} 10. a4 {[%clk 0:01:50]} 10... c5 {[%clk 0:01:43.8]} 11. bxc6 {[%clk
0:01:49.4]} 11... Nxc6 {[%clk 0:01:42.3]} 12. Bb5 {[%clk 0:01:41.6]} 12... Be6
{[%clk 0:01:36.2]} 13. Ng5 {[%clk 0:01:40.6]} 13... Bc8 {[%clk 0:00:37.9]} 14.
Nge4 {[%clk 0:01:31.8]} 14... e5 {[%clk 0:00:35.5]} 15. Ba3 {[%clk 0:01:05.3]}
15... Be6 {[%clk 0:00:20.6]} 16. Bxf8 {[%clk 0:01:01.7]} 16... Qxf8 {[%clk
0:00:19.3]} 17. Nc5 {[%clk 0:00:59]} 17... exd4 {[%clk 0:00:16.9]} 18. Nxe6
{[%clk 0:00:58.4]} 18... fxe6 {[%clk 0:00:16.9]} 19. e4 {[%clk 0:00:43.2]} 19...
Nf4 {[%clk 0:00:14.2]} 20. O-O {[%clk 0:00:39.6]} 20... Qf6 {[%clk 0:00:10.5]}
21. Rac1 {[%clk 0:00:33.8]} 21... d3 {[%clk 0:00:09.7]} 22. Bxd3 {[%clk
0:00:27]} 22... Ne5 {[%clk 0:00:09.6]} 23. Bb5 {[%clk 0:00:24.3]} 23... Qg5
{[%clk 0:00:08.1]} 24. g3 {[%clk 0:00:20.7]} 24... Ng4 {[%clk 0:00:04.9]} 25.
gxf4 {[%clk 0:00:16]} 25... Qxf4 {[%clk 0:00:04.1]} 26. Qg3 {[%clk 0:00:16]} 1-0